[Event "African-ch Women 2019"]
[Site "Hammamet"]
[Date "2019.07.11"]
[Round "3.1"]
[White "Moaataz, Ayah"]
[Black "Wafa, Shrook"]
[Result "0-1"]
[ECO "A29"]
[WhiteElo "2031"]
[BlackElo "2144"]
[Annotator "NA"]
[PlyCount "66"]
[EventDate "2019.07.09"]
[EventType "swiss"]
[EventCountry "TUN"]
[SourceTitle "playchess.com"]
[Source "ChessBase"]
[SourceQuality "1"]
[TimeControl "5400+30"]

1. c4 {[%emt 0:00:00]} e5 {[%emt 0:00:00]} 2. g3 {[%emt 0:00:00]} Nf6 {[%emt 0:00:00]} 3. Bg2 {[%emt 0:00:00]} d5 {[%emt 0:00:09]} 4. cxd5 {[%emt 0:00:00]} Nxd5 {[%emt 0:00:09]} 5. Nc3 {[%emt 0:00:03]} Nb6 {[%emt 0:00:54]} 6. Nf3 {[%emt 0:00:36]} Nc6 {[%emt 0:00:16]} 7. Rb1 {[%emt 0:00:41]} Be7 {[%emt 0:03:17]} 8. O-O {[%emt 0:02:34]} O-O {[%emt 0:00:34]} 9. b4 {[%emt 0:00:32]} Bf5 {[%emt 0:01:32]} 10. b5 {[%emt 0:02:38]} Nd4 {[%emt 0:02:37]} 11. d3 {[%emt 0:01:02]} Bf6 {[%emt 0:02:30]} 12. Nd2 {[%emt 0:04:12]} c6 {[%emt 0:04:45]} 13. bxc6 {[%emt 0:06:46]} Nxc6 {[%emt 0:02:05]} 14. a4 {[%emt 0:02:59]} Rc8 {[%emt 0:02:39]} 15. Ba3 {[%emt 0:09:00]} Be7 {[%emt 0:00:53]} 16. Bxe7 {[%emt 0:03:20]} Qxe7 {[%emt 0:01:10]} 17. Nd5 {[%emt 0:07:39]} Nxd5 {[%emt 0:01:43]} 18. Bxd5 {[%emt 0:00:22]} Rfd8 {[%emt 0:01:47]} 19. Bg2 {[%emt 0:00:54]} b6 {[%emt 0:01:28]} 20. Re1 {[%emt 0:09:06]} h5 {[%emt 0:01:15]} 21. h4 {[%emt 0:00:57]} Nd4 {[%emt 0:03:11]} 22. Rc1 {[%emt 0:09:55]} Rxc1 {[%emt 0:06:33]} 23. Qxc1 {[%emt 0:00:05]} Rc8 {[%emt 0:00:20]} 24. Qd1 {[%emt 0:04:47]} Qb4 {[%emt 0:03:55]} 25. Bd5 {[%emt 0:05:41]} Rc2 {[%emt 0:08:12]} 26. Nc4 {[%emt 0:01:27]} Bg4 {[%emt 0:01:32]} 27. f3 {[%emt 0:04:59]} Qc5 {[%emt 0:04:48]} 28. Ne3 {[%emt 0:07:27]} Nxe2+ {[%emt 0:01:40]} 29. Kf2 {[%emt 0:01:25]} Nd4+ {[%emt 0:01:02]} 30. Kf1 {[%emt 0:06:31]} Bh3+ {[%emt 0:00:21]} 31. Kg1 {[%emt 0:00:04]} Rb2 {[%emt 0:03:01]} 32. Kh1 {[%emt 0:01:34]} Nf5 {[%emt 0:03:28]} 33. Nxf5 {[%emt 0:00:59]} Qf2 {[%emt 0:01:10]} 0-1

[Event "African-ch Women 2019"]
[Site "Hammamet"]
[Date "2019.07.11"]
[Round "3.2"]
[White "Mwango, Lorita"]
[Black "Latreche, Sabrina"]
[Result "0-1"]
[ECO "A85"]
[WhiteElo "1931"]
[BlackElo "2062"]
[Annotator "NA"]
[PlyCount "78"]
[EventDate "2019.07.09"]
[EventType "swiss"]
[EventCountry "TUN"]
[SourceTitle "playchess.com"]
[Source "ChessBase"]
[SourceQuality "1"]
[TimeControl "5400+30"]

1. d4 {[%emt 0:00:00]} f5 {[%emt 0:00:00]} 2. Nf3 {[%emt 0:00:00]} Nf6 {[%emt 0:00:00]} 3. e3 {[%emt 0:00:18]} e6 {[%emt 0:00:00]} 4. c4 {[%emt 0:00:04]} b6 {[%emt 0:00:02]} 5. Nc3 {[%emt 0:00:22]} Bb7 {[%emt 0:00:12]} 6. g3 {[%emt 0:01:50]} Be7 {[%emt 0:08:44]} 7. Bg2 {[%emt 0:00:12]} O-O {[%emt 0:01:47]} 8. O-O {[%emt 0:00:08]} Qe8 {[%emt 0:04:34]} 9. b3 {[%emt 0:07:37]} Qh5 {[%emt 0:16:19]} 10. Ne5 {[%emt 0:04:26]} Qxd1 {[%emt 0:10:41]} 11. Rxd1 {[%emt 0:00:14]} Bxg2 {[%emt 0:00:15]} 12. Kxg2 {[%emt 0:00:10]} Ne4 {[%emt 0:03:57]} 13. Nb5 {[%emt 0:02:51]} a6 {[%emt 0:01:32]} 14. Na3 {[%emt 0:01:58]} d6 {[%emt 0:09:40]} 15. Nf3 {[%emt 0:00:24]} Nc6 {[%emt 0:07:48]} 16. Nc2 {[%emt 0:00:36]} b5 {[%emt 0:02:21]} 17. Na3 {[%emt 0:06:06]} bxc4 {[%emt 0:05:14]} 18. Nxc4 {[%emt 0:00:38]} a5 {[%emt 0:03:49]} 19. Nb2 {[%emt 0:00:52]} d5 {[%emt 0:11:31]} 20. Bd2 {[%emt 0:02:59]} Nb4 {[%emt 0:03:39]} 21. Rdc1 {[%emt 0:02:19]} c5 {[%emt 0:02:19]} 22. a3 {[%emt 0:09:15]} Nc6 {[%emt 0:00:05]} 23. Na4 {[%emt 0:00:42]} Rfb8 {[%emt 0:02:07]} 24. Nxc5 {[%emt 0:09:50]} Bxc5 {[%emt 0:00:10]} 25. dxc5 {[%emt 0:02:24]} Rxb3 {[%emt 0:00:04]} 26. Rc2 {[%emt 0:00:14]} e5 {[%emt 0:02:27]} 27. Be1 {[%emt 0:02:48]} Rab8 {[%emt 0:01:37]} 28. Nd2 {[%emt 0:01:16]} Rb2 {[%emt 0:00:36]} 29. Rxb2 {[%emt 0:01:07]} Rxb2 {[%emt 0:00:05]} 30. Nxe4 {[%emt 0:00:12]} fxe4 {[%emt 0:00:12]} 31. Rd1 {[%emt 0:02:33]} d4 {[%emt 0:00:04]} 32. Rd2 {[%emt 0:02:30]} Rb1 {[%emt 0:00:05]} 33. Kf1 {[%emt 0:00:16]} Rc1 {[%emt 0:00:47]} 34. exd4 {[%emt 0:01:18]} exd4 {[%emt 0:00:47]} 35. Ke2 {[%emt 0:02:01]} d3+ {[%emt 0:00:16]} 36. Kf1 {[%emt 0:00:47]} Nd4 {[%emt 0:00:05]} 37. Rb2 {[%emt 0:07:04]} Nf3 {[%emt 0:00:07]} 38. c6 {[%emt 0:04:17]} d2 {[%emt 0:01:45]} 39. Rxd2 {[%emt 0:00:32]} Rxe1+ {[%emt 0:00:05]} 0-1

[Event "African-ch Women 2019"]
[Site "Hammamet"]
[Date "2019.07.11"]
[Round "3.3"]
[White "Wafa, Shahenda"]
[Black "Mezioud, Amina"]
[Result "0-1"]
[ECO "C60"]
[WhiteElo "2175"]
[BlackElo "2128"]
[Annotator "NA"]
[PlyCount "128"]
[EventDate "2019.07.09"]
[EventType "swiss"]
[EventCountry "TUN"]
[SourceTitle "playchess.com"]
[Source "ChessBase"]
[SourceQuality "1"]
[TimeControl "5400+30"]

1. e4 {[%emt 0:00:00]} e5 {[%emt 0:00:43]} 2. Nf3 {[%emt 0:00:00]} Nc6 {[%emt 0:00:04]} 3. Bb5 {[%emt 0:00:00]} a6 {[%emt 0:00:04]} 4. Ba4 {[%emt 0:00:00]} Nge7 {[%emt 0:00:08]} 5. O-O {[%emt 0:01:00]} g6 {[%emt 0:00:13]} 6. d4 {[%emt 0:00:28]} exd4 {[%emt 0:03:51]} 7. Nxd4 {[%emt 0:00:10]} Bg7 {[%emt 0:00:49]} 8. Nxc6 {[%emt 0:00:55]} Nxc6 {[%emt 0:00:21]} 9. c3 {[%emt 0:02:07]} O-O {[%emt 0:00:24]} 10. f4 {[%emt 0:00:14]} d6 {[%emt 0:00:33]} 11. f5 {[%emt 0:03:14]} Ne5 {[%emt 0:05:26]} 12. Bb3 {[%emt 0:06:35]} b5 {[%emt 0:03:18]} 13. Bf4 {[%emt 0:03:47]} Bb7 {[%emt 0:03:21]} 14. Nd2 {[%emt 0:07:44]} c5 {[%emt 0:08:13]} 15. Bc2 {[%emt 0:05:28]} Qe7 {[%emt 0:11:58]} 16. Qe1 {[%emt 0:11:40]} Rfe8 {[%emt 0:03:19]} 17. Qf2 {[%emt 0:03:52]} Rad8 {[%emt 0:09:30]} 18. Rad1 {[%emt 0:01:49]} Ng4 {[%emt 0:07:50]} 19. Qg3 {[%emt 0:02:47]} Ne5 {[%emt 0:01:25]} 20. Rfe1 {[%emt 0:13:07]} Bf6 {[%emt 0:01:56]} 21. Nf3 {[%emt 0:05:40]} Kh8 {[%emt 0:03:47]} 22. Ng5 {[%emt 0:03:48]} Bxg5 {[%emt 0:02:41]} 23. Bxg5 {[%emt 0:01:52]} f6 {[%emt 0:00:21]} 24. Bc1 {[%emt 0:05:51]} gxf5 {[%emt 0:00:41]} 25. Qh3 {[%emt 0:05:21]} fxe4 {[%emt 0:01:17]} 26. Bxe4 {[%emt 0:00:23]} Bxe4 {[%emt 0:00:30]} 27. Rxe4 {[%emt 0:00:06]} Qe6 {[%emt 0:02:45]} 28. Qe3 {[%emt 0:02:13]} Rg8 {[%emt 0:06:42]} 29. Rh4 {[%emt 0:01:02]} Rg6 {[%emt 0:01:10]} 30. Rf1 {[%emt 0:01:48]} Qxa2 {[%emt 0:04:14]} 31. Qh3 {[%emt 0:00:48]} Rd7 {[%emt 0:03:45]} 32. Rhf4 {[%emt 0:02:27]} Rf7 {[%emt 0:01:56]} 33. Qc8+ {[%emt 0:00:53]} Kg7 {[%emt 0:00:20]} 34. h4 {[%emt 0:01:59]} Qd5 {[%emt 0:04:52]} 35. Qh3 {[%emt 0:00:50]} Qd3 {[%emt 0:02:50]} 36. Qc8 {[%emt 0:02:25]} Qd5 {[%emt 0:01:04]} 37. Qh3 {[%emt 0:00:02]} Qd3 {[%emt 0:00:04]} 38. Qc8 {[%emt 0:00:12]} Qg3 {[%emt 0:01:01]} 39. R1f2 {[%emt 0:01:03]} Ng4 {[%emt 0:01:34]} 40. Rxg4 {[%emt 0:00:00]} Qxg4 {[%emt 0:00:00]} 41. Qxa6 {[%emt 0:00:00]} Qd1+ {[%emt 0:00:00]} 42. Rf1 {[%emt 0:00:00]} Qd5 {[%emt 0:00:00]} 43. Rf2 {[%emt 0:00:00]} Re7 {[%emt 0:00:00]} 44. Bf4 {[%emt 0:00:00]} c4 {[%emt 0:00:00]} 45. Kh2 {[%emt 0:00:00]} f5 {[%emt 0:00:00]} 46. Bg5 {[%emt 0:00:00]} Re8 {[%emt 0:00:00]} 47. Qa7+ {[%emt 0:00:00]} Kg8 {[%emt 0:00:00]} 48. Qd7 {[%emt 0:00:00]} Qe5+ {[%emt 0:00:00]} 49. Bf4 {[%emt 0:00:00]} Qe7 {[%emt 0:00:00]} 50. Qxe7 {[%emt 0:00:00]} Rxe7 {[%emt 0:00:00]} 51. h5 {[%emt 0:00:00]} Rge6 {[%emt 0:00:00]} 52. Bg5 {[%emt 0:00:00]} Rg7 {[%emt 0:00:00]} 53. Bh4 {[%emt 0:00:00]} Rg4 {[%emt 0:00:00]} 54. Kh3 {[%emt 0:00:00]} Ree4 {[%emt 0:00:00]} 55. g3 {[%emt 0:00:00]} Re5 {[%emt 0:00:00]} 56. Bf6 {[%emt 0:00:00]} Rd5 {[%emt 0:00:00]} 57. Bd4 {[%emt 0:00:00]} Re4 {[%emt 0:00:00]} 58. h6 {[%emt 0:00:00]} Kf7 {[%emt 0:00:00]} 59. Bg7 {[%emt 0:00:00]} Kg6 {[%emt 0:00:00]} 60. b3 {[%emt 0:00:00]} Rd3 {[%emt 0:00:18]} 61. bxc4 {[%emt 0:00:00]} bxc4 {[%emt 0:00:03]} 62. Kh2 {[%emt 0:00:51]} Kg5 {[%emt 0:01:41]} 63. Rb2 {[%emt 0:05:46]} Kg4 {[%emt 0:01:26]} 64. Bf8 {[%emt 0:00:36]} Ree3 {[%emt 0:00:41]} 0-1

[Event "African-ch Women 2019"]
[Site "Hammamet"]
[Date "2019.07.11"]
[Round "3.4"]
[White "Elansary, Eman"]
[Black "Nassr, Lina"]
[Result "1-0"]
[ECO "D05"]
[WhiteElo "1946"]
[BlackElo "1982"]
[Annotator "NA"]
[PlyCount "99"]
[EventDate "2019.07.09"]
[EventType "swiss"]
[EventCountry "TUN"]
[SourceTitle "playchess.com"]
[Source "ChessBase"]
[SourceQuality "1"]
[TimeControl "5400+30"]

1. d4 {[%emt 0:00:00]} d5 {[%emt 0:00:00]} 2. Nf3 {[%emt 0:00:00]} Nf6 {[%emt 0:00:42]} 3. e3 {[%emt 0:03:16]} e6 {[%emt 0:00:47]} 4. Bd3 {[%emt 0:02:18]} c5 {[%emt 0:01:04]} 5. c3 {[%emt 0:01:37]} Bd6 {[%emt 0:01:50]} 6. O-O {[%emt 0:00:30]} O-O {[%emt 0:01:04]} 7. Ne5 {[%emt 0:02:06]} b6 {[%emt 0:05:32]} 8. Nd2 {[%emt 0:06:10]} Qc7 {[%emt 0:06:18]} 9. f4 {[%emt 0:00:46]} Ba6 {[%emt 0:01:23]} 10. Bxa6 {[%emt 0:04:29]} Nxa6 {[%emt 0:00:49]} 11. Qf3 {[%emt 0:00:55]} Qb7 {[%emt 0:03:20]} 12. g4 {[%emt 0:01:25]} Ne4 {[%emt 0:03:37]} 13. Qg2 {[%emt 0:09:24]} f6 {[%emt 0:08:54]} 14. Nxe4 {[%emt 0:05:03]} dxe4 {[%emt 0:05:26]} 15. Nc4 {[%emt 0:03:03]} Bc7 {[%emt 0:03:20]} 16. f5 {[%emt 0:01:38]} Rae8 {[%emt 0:06:43]} 17. a4 {[%emt 0:12:07]} Qc6 {[%emt 0:15:46]} 18. b3 {[%emt 0:02:15]} Kh8 {[%emt 0:07:16]} 19. Kh1 {[%emt 0:06:19]} Rf7 {[%emt 0:01:50]} 20. Ra2 {[%emt 0:02:22]} Nb8 {[%emt 0:02:51]} 21. Raf2 {[%emt 0:02:44]} exf5 {[%emt 0:03:43]} 22. gxf5 {[%emt 0:05:16]} Nd7 {[%emt 0:02:40]} 23. Ba3 {[%emt 0:02:54]} a6 {[%emt 0:01:26]} 24. Rd1 {[%emt 0:09:21]} Qd5 {[%emt 0:04:11]} 25. Qf1 {[%emt 0:01:10]} Qc6 {[%emt 0:06:16]} 26. Nb2 {[%emt 0:04:12]} cxd4 {[%emt 0:01:36]} 27. cxd4 {[%emt 0:00:54]} b5 {[%emt 0:01:30]} 28. Rc1 {[%emt 0:01:52]} Qb7 {[%emt 0:00:28]} 29. Rfc2 {[%emt 0:03:42]} Bb8 {[%emt 0:02:09]} 30. axb5 {[%emt 0:01:06]} axb5 {[%emt 0:00:13]} 31. Bc5 {[%emt 0:00:38]} Rc8 {[%emt 0:01:33]} 32. b4 {[%emt 0:00:37]} Bc7 {[%emt 0:01:08]} 33. Nd1 {[%emt 0:03:37]} Bb6 {[%emt 0:00:30]} 34. Qxb5 {[%emt 0:00:28]} Nxc5 {[%emt 0:00:29]} 35. bxc5 {[%emt 0:00:37]} Ba7 {[%emt 0:00:20]} 36. Qxb7 {[%emt 0:01:32]} Rxb7 {[%emt 0:00:06]} 37. Rb2 {[%emt 0:00:48]} Rxb2 {[%emt 0:01:04]} 38. Nxb2 {[%emt 0:00:01]} Kg8 {[%emt 0:00:27]} 39. Ra1 {[%emt 0:00:38]} Rc7 {[%emt 0:00:34]} 40. Na4 {[%emt 0:00:00]} Kf8 {[%emt 0:00:00]} 41. Kg2 {[%emt 0:00:00]} g6 {[%emt 0:00:00]} 42. Nc3 {[%emt 0:00:00]} Bxc5 {[%emt 0:00:00]} 43. Ra8+ {[%emt 0:00:00]} Kg7 {[%emt 0:00:00]} 44. dxc5 {[%emt 0:00:00]} Rxc5 {[%emt 0:00:00]} 45. Ra7+ {[%emt 0:00:00]} Kh6 {[%emt 0:00:00]} 46. Nxe4 {[%emt 0:00:00]} Rxf5 {[%emt 0:00:00]} 47. Rf7 {[%emt 0:00:00]} Re5 {[%emt 0:01:43]} 48. Nxf6 {[%emt 0:00:00]} Re6 {[%emt 0:02:02]} 49. Ng4+ {[%emt 0:00:00]} Kg5 {[%emt 0:00:34]} 50. Kg3 {[%emt 0:00:00]} 1-0

[Event "African-ch Women 2019"]
[Site "Hammamet"]
[Date "2019.07.11"]
[Round "3.5"]
[White "February, Jesse Nikki"]
[Black "Ibrahim, Aishat"]
[Result "1-0"]
[ECO "B01"]
[WhiteElo "1888"]
[BlackElo "1661"]
[Annotator "NA"]
[PlyCount "59"]
[EventDate "2019.07.09"]
[EventType "swiss"]
[EventCountry "TUN"]
[SourceTitle "playchess.com"]
[Source "ChessBase"]
[SourceQuality "1"]
[TimeControl "5400+30"]

1. e4 {[%emt 0:00:00]} d5 {[%emt 0:01:08]} 2. exd5 {[%emt 0:00:22]} Qxd5 {[%emt 0:00:37]} 3. Nc3 {[%emt 0:00:23]} Qd6 {[%emt 0:00:18]} 4. d4 {[%emt 0:00:17]} Nf6 {[%emt 0:00:41]} 5. Nf3 {[%emt 0:00:25]} a6 {[%emt 0:00:17]} 6. g3 {[%emt 0:00:29]} Bg4 {[%emt 0:00:30]} 7. Bg2 {[%emt 0:00:18]} Nc6 {[%emt 0:00:26]} 8. O-O {[%emt 0:00:51]} O-O-O {[%emt 0:02:41]} 9. d5 {[%emt 0:02:25]} Ne5 {[%emt 0:00:26]} 10. Bf4 {[%emt 0:04:20]} Nxf3+ {[%emt 0:00:26]} 11. Bxf3 {[%emt 0:00:50]} Bxf3 {[%emt 0:00:17]} 12. Qxf3 {[%emt 0:00:22]} Qc5 {[%emt 0:00:58]} 13. Rad1 {[%emt 0:04:04]} h6 {[%emt 0:01:46]} 14. Na4 {[%emt 0:05:13]} Qb5 {[%emt 0:00:59]} 15. Qc3 {[%emt 0:05:04]} Ne8 {[%emt 0:02:52]} 16. b3 {[%emt 0:01:32]} Nd6 {[%emt 0:01:49]} 17. Rfe1 {[%emt 0:03:22]} Kb8 {[%emt 0:01:40]} 18. Nc5 {[%emt 0:02:02]} Rg8 {[%emt 0:00:45]} 19. a4 {[%emt 0:02:37]} Qe8 {[%emt 0:08:30]} 20. Qb4 {[%emt 0:03:08]} b6 {[%emt 0:01:17]} 21. Nxa6+ {[%emt 0:02:14]} Kb7 {[%emt 0:00:02]} 22. Nc5+ {[%emt 0:00:49]} Ka7 {[%emt 0:00:30]} 23. Ne4 {[%emt 0:01:30]} Qd7 {[%emt 0:00:42]} 24. a5 {[%emt 0:01:29]} g5 {[%emt 0:01:12]} 25. axb6+ {[%emt 0:00:28]} cxb6 {[%emt 0:00:06]} 26. Ra1+ {[%emt 0:00:21]} Kb8 {[%emt 0:00:53]} 27. Qxb6+ {[%emt 0:00:15]} Qb7 {[%emt 0:00:38]} 28. Qxd8+ {[%emt 0:00:14]} Qc8 {[%emt 0:00:27]} 29. Bxd6+ {[%emt 0:00:08]} exd6 {[%emt 0:00:32]} 30. Ra8+ {[%emt 0:00:08]} 1-0

[Event "African-ch Women 2019"]
[Site "Hammamet"]
[Date "2019.07.12"]
[Round "4.1"]
[White "Wafa, Shrook"]
[Black "Latreche, Sabrina"]
[Result "1-0"]
[ECO "C60"]
[WhiteElo "2144"]
[BlackElo "2062"]
[Annotator "NA"]
[PlyCount "43"]
[EventDate "2019.07.09"]
[EventType "swiss"]
[EventCountry "TUN"]
[SourceTitle "playchess.com"]
[Source "ChessBase"]
[SourceQuality "1"]
[TimeControl "5400+30"]

1. e4 {[%emt 0:00:00]} e5 {[%emt 0:00:00]} 2. Nf3 {[%emt 0:00:00]} Nc6 {[%emt 0:00:00]} 3. Bb5 {[%emt 0:00:00]} g6 {[%emt 0:00:06]} 4. c3 {[%emt 0:00:10]} Bg7 {[%emt 0:00:10]} 5. d4 {[%emt 0:00:09]} exd4 {[%emt 0:00:15]} 6. cxd4 {[%emt 0:00:15]} a6 {[%emt 0:00:25]} 7. Bxc6 {[%emt 0:03:02]} dxc6 {[%emt 0:00:16]} 8. Nc3 {[%emt 0:00:25]} Bg4 {[%emt 0:01:31]} 9. Be3 {[%emt 0:00:59]} Bxf3 {[%emt 0:08:13]} 10. Qxf3 {[%emt 0:00:39]} Bxd4 {[%emt 0:04:11]} 11. O-O-O {[%emt 0:01:02]} Bxe3+ {[%emt 0:00:20]} 12. Qxe3 {[%emt 0:00:11]} Qf6 {[%emt 0:04:41]} 13. e5 {[%emt 0:01:45]} Qe6 {[%emt 0:02:04]} 14. Ne4 {[%emt 0:01:05]} h6 {[%emt 0:14:54]} 15. Nc5 {[%emt 0:05:35]} Qxa2 {[%emt 0:22:41]} 16. e6 {[%emt 0:05:02]} Qc4+ {[%emt 0:01:00]} 17. Kb1 {[%emt 0:00:48]} f5 {[%emt 0:07:49]} 18. Qe5 {[%emt 0:02:41]} Rh7 {[%emt 0:01:48]} 19. Rd7 {[%emt 0:01:12]} b6 {[%emt 0:21:22]} 20. Rxh7 {[%emt 0:02:09]} bxc5 {[%emt 0:00:09]} 21. Rd1 {[%emt 0:02:38]} a5 {[%emt 0:01:42]} 22. Rh8 {[%emt 0:00:54]} 1-0

[Event "African-ch Women 2019"]
[Site "Hammamet"]
[Date "2019.07.12"]
[Round "4.2"]
[White "Mezioud, Amina"]
[Black "February, Jesse Nikki"]
[Result "0-1"]
[ECO "C11"]
[WhiteElo "2128"]
[BlackElo "1888"]
[Annotator "NA"]
[PlyCount "42"]
[EventDate "2019.07.09"]
[EventType "swiss"]
[EventCountry "TUN"]
[SourceTitle "playchess.com"]
[Source "ChessBase"]
[SourceQuality "1"]
[TimeControl "5400+30"]

1. e4 {[%emt 0:00:31]} e6 {[%emt 0:00:00]} 2. Nf3 {[%emt 0:00:11]} d5 {[%emt 0:00:52]} 3. Nc3 {[%emt 0:00:22]} Nf6 {[%emt 0:01:10]} 4. e5 {[%emt 0:00:51]} Nfd7 {[%emt 0:00:37]} 5. d4 {[%emt 0:00:12]} c5 {[%emt 0:00:59]} 6. dxc5 {[%emt 0:00:04]} Nc6 {[%emt 0:00:54]} 7. Bf4 {[%emt 0:00:05]} Bxc5 {[%emt 0:00:59]} 8. Bd3 {[%emt 0:00:06]} f6 {[%emt 0:01:45]} 9. exf6 {[%emt 0:17:12]} Nxf6 {[%emt 0:00:19]} 10. O-O {[%emt 0:07:06]} O-O {[%emt 0:00:33]} 11. Ne5 {[%emt 0:08:55]} Bd7 {[%emt 0:02:05]} 12. Bg3 {[%emt 0:02:28]} Qe7 {[%emt 0:04:35]} 13. Nxc6 {[%emt 0:07:41]} Bxc6 {[%emt 0:03:41]} 14. Qe2 {[%emt 0:01:08]} Rae8 {[%emt 0:01:19]} 15. Rfe1 {[%emt 0:02:09]} Qd7 {[%emt 0:03:28]} 16. Be5 {[%emt 0:01:33]} Ne4 {[%emt 0:06:02]} 17. Nd1 {[%emt 0:11:13]} Nxf2 {[%emt 0:05:29]} 18. Ne3 {[%emt 0:00:33]} d4 {[%emt 0:02:45]} 19. Ng4 {[%emt 0:03:37]} Qd5 {[%emt 0:01:10]} 20. Be4 {[%emt 0:08:48]} Qxe4 {[%emt 0:04:52]} 21. Qxe4 {[%emt 0:00:38]} Nxe4 {[%emt 0:00:27]} 0-1

[Event "African-ch Women 2019"]
[Site "Hammamet"]
[Date "2019.07.12"]
[Round "4.3"]
[White "Ravelomanana, Sabine"]
[Black "Moaataz, Ayah"]
[Result "1/2-1/2"]
[ECO "D02"]
[WhiteElo "1832"]
[BlackElo "2031"]
[Annotator "NA"]
[PlyCount "82"]
[EventDate "2019.07.09"]
[EventType "swiss"]
[EventCountry "TUN"]
[SourceTitle "playchess.com"]
[Source "ChessBase"]
[SourceQuality "1"]
[TimeControl "5400+30"]

1. d4 {[%emt 0:00:00]} d5 {[%emt 0:00:00]} 2. Bf4 {[%emt 0:00:00]} Nf6 {[%emt 0:00:00]} 3. e3 {[%emt 0:00:00]} e6 {[%emt 0:00:00]} 4. Nf3 {[%emt 0:00:22]} Bd6 {[%emt 0:00:13]} 5. Bg3 {[%emt 0:00:08]} Bxg3 {[%emt 0:01:55]} 6. hxg3 {[%emt 0:00:08]} Qd6 {[%emt 0:00:35]} 7. c3 {[%emt 0:01:53]} Nbd7 {[%emt 0:00:41]} 8. Nbd2 {[%emt 0:03:18]} e5 {[%emt 0:07:14]} 9. dxe5 {[%emt 0:08:13]} Nxe5 {[%emt 0:00:08]} 10. Nxe5 {[%emt 0:00:10]} Qxe5 {[%emt 0:00:04]} 11. Nf3 {[%emt 0:00:04]} Qe7 {[%emt 0:00:18]} 12. Bd3 {[%emt 0:00:46]} c6 {[%emt 0:03:39]} 13. Qc2 {[%emt 0:03:48]} g6 {[%emt 0:06:12]} 14. O-O-O {[%emt 0:06:24]} Bg4 {[%emt 0:06:38]} 15. Rde1 {[%emt 0:00:28]} Bxf3 {[%emt 0:06:52]} 16. gxf3 {[%emt 0:00:10]} O-O-O {[%emt 0:00:20]} 17. Qa4 {[%emt 0:11:08]} Kb8 {[%emt 0:04:14]} 18. Kb1 {[%emt 0:02:46]} h5 {[%emt 0:04:27]} 19. Rh4 {[%emt 0:15:08]} Rhe8 {[%emt 0:11:01]} 20. Rd1 {[%emt 0:08:36]} Nd7 {[%emt 0:06:52]} 21. Qc2 {[%emt 0:01:12]} Ne5 {[%emt 0:11:25]} 22. Be2 {[%emt 0:01:57]} Rd6 {[%emt 0:03:25]} 23. f4 {[%emt 0:02:40]} Nd7 {[%emt 0:00:20]} 24. f5 {[%emt 0:00:54]} Rf6 {[%emt 0:01:34]} 25. Rf4 {[%emt 0:07:54]} Qe5 {[%emt 0:05:17]} 26. fxg6 {[%emt 0:02:10]} fxg6 {[%emt 0:00:29]} 27. Bd3 {[%emt 0:00:25]} g5 {[%emt 0:03:03]} 28. Rf5 {[%emt 0:11:29]} Rxf5 {[%emt 0:00:07]} 29. Bxf5 {[%emt 0:00:05]} Nf6 {[%emt 0:00:13]} 30. Rh1 {[%emt 0:02:37]} Rh8 {[%emt 0:00:44]} 31. Bh3 {[%emt 0:02:09]} Kc7 {[%emt 0:04:48]} 32. Kc1 {[%emt 0:00:53]} Rf8 {[%emt 0:02:08]} 33. Rf1 {[%emt 0:05:49]} Qe4 {[%emt 0:02:41]} 34. Qe2 {[%emt 0:01:41]} Re8 {[%emt 0:01:02]} 35. Kd2 {[%emt 0:00:39]} g4 {[%emt 0:03:00]} 36. f3 {[%emt 0:00:07]} Qe6 {[%emt 0:00:45]} 37. Bg2 {[%emt 0:00:45]} gxf3 {[%emt 0:01:46]} 38. Qxf3 {[%emt 0:00:58]} Ne4+ {[%emt 0:00:48]} 39. Ke2 {[%emt 0:00:54]} Re7 {[%emt 0:01:33]} 40. Qf4+ {[%emt 0:00:00]} Nd6 {[%emt 0:00:00]} 41. Rf3 {[%emt 0:00:00]} d4 {[%emt 0:00:00]} 1/2-1/2

[Event "African-ch Women 2019"]
[Site "Hammamet"]
[Date "2019.07.12"]
[Round "4.4"]
[White "Ofowino, Toritsemuwa"]
[Black "Elansary, Eman"]
[Result "1/2-1/2"]
[ECO "D00"]
[WhiteElo "1877"]
[BlackElo "1946"]
[Annotator "NA"]
[PlyCount "56"]
[EventDate "2019.07.09"]
[EventType "swiss"]
[EventCountry "TUN"]
[SourceTitle "playchess.com"]
[Source "ChessBase"]
[SourceQuality "1"]
[TimeControl "5400+30"]

1. d4 {[%emt 0:00:00]} d5 {[%emt 0:00:09]} 2. Bf4 {[%emt 0:00:00]} Nf6 {[%emt 0:00:25]} 3. e3 {[%emt 0:00:00]} e6 {[%emt 0:00:32]} 4. Nd2 {[%emt 0:00:55]} Bd6 {[%emt 0:02:06]} 5. Bg3 {[%emt 0:00:21]} O-O {[%emt 0:00:59]} 6. Bd3 {[%emt 0:00:09]} Nbd7 {[%emt 0:02:22]} 7. Ngf3 {[%emt 0:00:39]} b6 {[%emt 0:01:46]} 8. Qe2 {[%emt 0:14:07]} Bb7 {[%emt 0:00:48]} 9. Rd1 {[%emt 0:00:46]} Ne4 {[%emt 0:00:42]} 10. Bxd6 {[%emt 0:06:29]} cxd6 {[%emt 0:02:16]} 11. c4 {[%emt 0:03:22]} Nxd2 {[%emt 0:02:27]} 12. Rxd2 {[%emt 0:00:34]} dxc4 {[%emt 0:01:12]} 13. Bxc4 {[%emt 0:00:05]} Nf6 {[%emt 0:00:30]} 14. O-O {[%emt 0:00:21]} Qe7 {[%emt 0:00:31]} 15. Rc1 {[%emt 0:01:07]} Be4 {[%emt 0:04:17]} 16. Bd3 {[%emt 0:00:17]} Bxd3 {[%emt 0:04:14]} 17. Qxd3 {[%emt 0:00:15]} Rac8 {[%emt 0:01:35]} 18. Rdc2 {[%emt 0:00:17]} Qb7 {[%emt 0:00:17]} 19. Nd2 {[%emt 0:08:40]} d5 {[%emt 0:01:56]} 20. Nf3 {[%emt 0:09:29]} Ne4 {[%emt 0:04:46]} 21. Ne5 {[%emt 0:04:47]} Nd6 {[%emt 0:00:50]} 22. Qa3 {[%emt 0:01:22]} Rxc2 {[%emt 0:05:38]} 23. Rxc2 {[%emt 0:00:19]} Nb5 {[%emt 0:05:46]} 24. Qd3 {[%emt 0:06:57]} a6 {[%emt 0:01:11]} 25. a4 {[%emt 0:01:11]} Na7 {[%emt 0:00:26]} 26. Qd1 {[%emt 0:00:27]} f6 {[%emt 0:02:25]} 27. Nf3 {[%emt 0:01:06]} Rc8 {[%emt 0:01:16]} 28. Qc1 {[%emt 0:00:25]} Nc6 {[%emt 0:08:27]} 1/2-1/2

[Event "African-ch Women 2019"]
[Site "Hammamet"]
[Date "2019.07.13"]
[Round "5.1"]
[White "February, Jesse Nikki"]
[Black "Wafa, Shrook"]
[Result "0-1"]
[ECO "B76"]
[WhiteElo "1888"]
[BlackElo "2144"]
[Annotator "NA"]
[PlyCount "40"]
[EventDate "2019.07.09"]
[EventType "swiss"]
[EventCountry "TUN"]
[SourceTitle "playchess.com"]
[Source "ChessBase"]
[SourceQuality "1"]
[TimeControl "5400+30"]

1. e4 {[%emt 0:00:00]} c5 {[%emt 0:00:00]} 2. Nf3 {[%emt 0:00:25]} d6 {[%emt 0:00:01]} 3. d4 {[%emt 0:01:08]} cxd4 {[%emt 0:00:15]} 4. Nxd4 {[%emt 0:00:18]} Nf6 {[%emt 0:00:14]} 5. Nc3 {[%emt 0:00:52]} g6 {[%emt 0:00:23]} 6. Be3 {[%emt 0:01:02]} Bg7 {[%emt 0:00:20]} 7. f3 {[%emt 0:01:13]} O-O {[%emt 0:00:27]} 8. Qd2 {[%emt 0:00:51]} Nc6 {[%emt 0:00:16]} 9. g4 {[%emt 0:04:30]} Ne5 {[%emt 0:01:59]} 10. h4 {[%emt 0:03:28]} Bd7 {[%emt 0:03:36]} 11. h5 {[%emt 0:05:51]} Rc8 {[%emt 0:00:54]} 12. O-O-O {[%emt 0:01:05]} Qa5 {[%emt 0:08:44]} 13. Kb1 {[%emt 0:04:11]} Nxf3 {[%emt 0:13:27]} 14. Nxf3 {[%emt 0:01:08]} Bxg4 {[%emt 0:00:32]} 15. Be2 {[%emt 0:21:48]} Rxc3 {[%emt 0:05:46]} 16. Bd4 {[%emt 0:17:56]} Nxe4 {[%emt 0:11:28]} 17. Qf4 {[%emt 0:01:27]} Be6 {[%emt 0:07:16]} 18. Qxe4 {[%emt 0:10:03]} Qxa2+ {[%emt 0:00:11]} 19. Kc1 {[%emt 0:00:07]} Bh6+ {[%emt 0:00:08]} 20. Be3 {[%emt 0:01:13]} Rxe3 {[%emt 0:00:55]} 0-1